Cogmind - Beta 16.1 @@@ ROGUE MODE // 2026.01.16 @ 19:43:47 Player: Infomantis Result: Destroyed by G-73 Enforcer with Heavy Laser Performance ------------- Evolutions (8) 4000 Regions Visited (21) 4200 Robots Destroyed (321) 1605 Value Destroyed (19765) 19765 Prototype IDs (123) 2460 Alien Tech Used (5) 1000 Bonus (8744) 8744 TOTAL SCORE: 41774 Bonus ------- High Alert Combat Kills 6527 Follower Combat Kills 93 Registered with UFD 300 Met Optimus in HQ 500 Met Imprinter 300 Met Zhirov 300 Met Optimus at Protoforge 1000 Friendly Fire -276 Cogmind --------- Core Integrity 0/1450 Matter 239/300 Energy 101/190 System Corruption 19% Temperature Hot (212) Movement Rolling (80) Ox1 Location -2/Protoforge Parts ------- > --- POWER (3) -------- Light Quantum Reactor > --- PROPULSION (4) --- Overtuned Huge Scrapsphere Overtuned Huge Scrapsphere > --- UTILITY (12) ----- 0bPrime Scrap Suit Experimental Heat Sink Experimental Heat Sink Experimental Heat Sink Makeshift Microdissipator Network Experimental Optical Array Experimental Core Analyzer Centrium Light Armor Plating Centrium Light Armor Plating > --- WEAPON (4) ------- Overtuned Beamcaster Overtuned Beamcaster Overtuned Quantum Rifle > --- INVENTORY (5) ---- Scrap Suit Makeshift Microdissipator Network Peak State ------------ > --- POWER ------------ Quantum Reactor Light Quantum Reactor Light Quantum Reactor > --- PROPULSION ------- Advanced Heavy Treads Biometal Heavy Treads > --- UTILITY ---------- High-capacity Storage Unit Plexus Tether Advanced Targeting Computer Experimental Launcher Guidance Computer Advanced Target Analyzer Core Analyzer Experimental Core Analyzer Advanced Transmission Jammer Centrium Medium Armor Plating Advanced Powered Armor Improved System Shield Advanced System Shield > --- WEAPON ----------- Heavy Dispersion Rifle Hypervelocity Multirail Concept XC Strikerail Concept XC Strikerail > --- INVENTORY -------- Quantum Reactor Heavy Siege Treads Advanced Heavy Siege Treads Biometal Leg Advanced Heat Sink Experimental Heat Sink Advanced Cooling System Experimental Energy Well Advanced Sensor Array Experimental Launcher Guidance Computer Advanced Transmission Jammer Improved Trap Extractor Heavy Neutron Cannon KE Penetrator Hypervelocity Multirail Point Singularity Launcher Sigix Broadsword [Rating: 204] Favorites ----------- Power Fission Core Engine Deuterium Engine Power Core Fission Core Reactor Light Quantum Reactor Propulsion Light Treads Treads Light Treads Leg Advanced Myomer Leg Wheel Armored Huge Wheel Flight Unit Experimental Surge Thruster Utility High-capacity Storage Unit Device Advanced Heat Sink Storage High-capacity Storage Unit Processor Advanced Targeting Computer Hackware Hacking Suite Protection Layered Medium Armor Plating Artifact Phase Redirector Weapon Gatling Laser Energy Gun Gatling Laser Energy Cannon Proton Cannon Ballistic Gun Coil Gun Ballistic Cannon Battle Cannon Launcher Long-range Missile Launcher Special Weapon CPS Tube Slashing Weapon Makeshift Axe Build | -11 -10 -10 -9 -6 -6 -6 -6 -5 -5 -5 -5 -5 -5 -5 -4 -4 -3 -3 -2 -2 -2 ------- Run | Yrd Mat Sub Scr Fac Low Low Zio Pro Fac Was Fac Upp Upp Zhi Pro Fac Res Tes Res Qua Frg Slots Evolved 16 | . . . . 8 . . . . 2 . . . . . . 2 2 . 2 . . Power 2 | . . . . 1 . . . . . . . . . . . . . . 1 . . Propulsion 2 | . . . . 2 . . . . . . . . . . . . . . . . . Utility 10 | . . . . 4 . . . . 1 . . . . . . 2 2 . 1 . . Weapon 2 | . . . . 1 . . . . 1 . . . . . . . . . . . . Parts Attached 234 | 7 . . 9 22 8 11 8 2 4 2 8 . 7 7 . 11 19 22 16 9 62 Power 39 | 1 . . . 6 . 2 1 . . . 2 . 1 1 . 2 4 2 5 2 10 Engine 7 | 1 . . . 3 . 1 1 . . . . . . . . . 1 . . . . Core 10 | . . . . 3 . 1 . . . . 2 . 1 . . . 1 . 1 . 1 Reactor 22 | . . . . . . . . . . . . . . 1 . 2 2 2 4 2 9 Propulsion 42 | 2 . . 2 4 1 4 2 . . . 1 . 3 3 . 1 3 1 3 1 11 Treads 19 | 2 . . . 4 1 1 2 . . . 1 . 2 . . . 1 . 2 1 2 Leg 12 | . . . . . . 1 . . . . . . 1 3 . 1 2 1 1 . 2 Wheel 7 | . . . 2 . . 2 . . . . . . . . . . . . . . 3 Hover . | . . . . . . . . . . . . . . . . . . . . . . Flight 4 | . . . . . . . . . . . . . . . . . . . . . 4 Utility 97 | 2 . . 3 8 5 3 2 . 1 1 4 . 1 2 . 7 10 7 8 3 30 Device 40 | 1 . . . 5 3 2 2 . 1 . 2 . . 1 . 3 3 3 5 1 8 Storage 6 | 1 . . 2 . . . . . . . . . . . . . 1 2 . . . Processor 15 | . . . . 1 . . . . . . 1 . . . . . 1 1 3 . 8 Hackware 5 | . . . . . . . . . . 1 1 . . . . . 2 . . . 1 Protection 30 | . . . 1 2 2 1 . . . . . . 1 1 . 4 3 1 . 1 13 Artifact 1 | . . . . . . . . . . . . . . . . . . . . 1 . Weapon 56 | 2 . . 4 4 2 2 3 2 3 1 1 . 2 1 . 1 2 12 . 3 11 Energy Gun 16 | 1 . . . 1 1 1 . . . 1 . . 2 . . . . 6 . . 3 Energy Cannon 9 | . . . . . 1 . . 1 . . 1 . . . . . 2 3 . . 1 Ballistic Gun 21 | 1 . . 2 2 . . 3 . 3 . . . . . . 1 . 3 . 2 4 Ballistic Cannon 3 | . . . 2 . . . . . . . . . . . . . . . . 1 . Launcher 3 | . . . . 1 . . . . . . . . . . . . . . . . 2 Special Weapon 2 | . . . . . . 1 . . . . . . . 1 . . . . . . . Impact Weapon . | . . . . . . . . . . . . . . . . . . . . . . Slashing Weapon 2 | . . . . . . . . 1 . . . . . . . . . . . . 1 Piercing Weapon . | . . . . . . . . . . . . . . . . . . . . . . Special Melee Weapon . | . . . . . . . . . . . . . . . . . . . . . . Unidentified Prototypes 36 | . . . . . 1 . 1 . 1 2 1 . . 5 . . 5 11 . 3 6 Corrupted Parts 4 | . . . . . . . 3 . . . . . . . . . . . . . 1 System Corruption 23 | . . . . . . . 17 . . . . . . . . . . . . . 6 Parts Lost 68 | . . . . 1 7 5 . . . 2 2 . 6 . . 6 1 2 . 1 35 Power 15 | . . . . . . 2 . . . . 1 . 1 . . 1 1 . . . 9 Propulsion 16 | . . . . 1 2 3 . . . 1 1 . 3 . . . . . . . 5 Utility 19 | . . . . . 2 . . . . 1 . . 1 . . 3 . 2 . . 10 Weapon 18 | . . . . . 3 . . . . . . . 1 . . 2 . . . 1 11 Highest Loss Streak 7 | . . . . 1 2 3 . . . 2 1 . 3 . . 3 1 1 . 1 7 To Critical Strikes 3 | . . . . . . . . . . . . . . . . 1 . . . . 2 Average Backups 17 | 5 8 7 19 15 14 17 18 17 16 18 18 18 16 18 17 17 17 17 18 17 14 Power . | . 1 1 1 . . 1 2 1 1 1 . 1 . . . 1 . . 1 1 . Propulsion 3 | 1 2 1 4 3 2 4 4 2 2 2 2 3 2 2 3 2 4 4 3 1 2 Utility 8 | 1 3 3 7 7 7 9 8 9 9 8 9 9 9 9 10 11 9 9 8 10 7 Weapon 3 | 1 2 2 4 3 2 1 2 4 3 6 5 4 3 5 1 1 1 3 4 4 4 Tool/Special . | . . . . . . . . . . . . . . . . . . . . . . Unused Backups 55 | . . 3 7 5 2 2 4 . . . 1 . . 3 . . 3 3 . 1 21 Power 2 | . . . . . . . 2 . . . . . . . . . . . . . . Propulsion 15 | . . 1 2 1 . . 2 . . . 1 . . . . . 1 2 . . 5 Utility 23 | . . . 1 1 2 2 . . . . . . . 2 . . 2 1 . . 12 Weapon 15 | . . 2 4 3 . . . . . . . . . 1 . . . . . 1 4 Tool/Special . | . . . . . . . . . . . . . . . . . . . . . . Average Slot Usage (%) 87 | . 100 100 83 98 96 84 91 93 84 68 74 76 79 69 100 98 93 98 98 91 80 Engine 4 | . 14 14 13 7 . 2 11 13 11 11 3 . . . . . 2 . . . . Core 3 | . . . . 4 13 4 . . . . 5 11 11 9 5 2 1 . 3 . . Reactor 2 | . . . . . . . . . . . . . . 1 5 6 4 9 8 12 10 Treads 10 | . 28 28 7 25 25 13 13 13 11 1 14 17 8 3 . . . . 1 9 4 Leg 3 | . . . . . . . . . . . . . 3 10 23 20 19 18 14 . . Wheel 3 | . . . 13 . . 5 5 6 5 11 2 . 1 . . . . . . . 3 Device 15 | . 14 14 6 19 19 18 19 20 17 22 18 11 12 14 17 16 19 19 17 16 13 Storage 6 | . 14 14 13 6 6 6 6 6 5 5 5 5 5 5 5 5 4 5 4 4 3 Processor 6 | . . . . 5 6 6 6 6 5 5 4 5 5 5 5 5 8 9 16 17 15 Hackware 4 | . . . . . . . . . . . 8 11 11 11 11 9 7 9 8 8 6 Protection 4 | . . . . 5 5 6 6 6 5 1 1 5 3 1 . 7 7 5 4 4 5 Energy Gun 7 | . 14 14 8 5 8 10 7 . . 4 4 4 7 . 11 10 9 12 8 7 4 Energy Cannon 1 | . . . . . . 5 5 2 . . . . . . . . 1 2 . 1 . Ballistic Gun 6 | . 14 14 12 12 5 . 4 12 15 1 . . 4 . 11 9 4 2 7 6 9 Peak Build Rating 204 | 8 8 8 28 54 61 66 74 69 74 84 99 99 103 112 109 127 149 164 175 178 204 Average Rating 87 | 6 8 7 15 48 55 55 64 68 70 75 91 98 98 77 108 119 129 152 169 171 163 On Entrance 80 | . 8 8 8 28 54 51 61 69 68 74 82 99 99 99 108 109 102 149 149 168 178 Avg Prop Armor Cover (%) 11 | . . . 14 11 . 12 11 10 10 5 10 . 9 7 . . 3 . . . 5 Naked Turns . | . . . . . . . . . . . . . . . . . . . . . . Heaviest Build 270 | 15 15 15 216 270 84 92 86 86 86 94 99 99 106 90 92 106 116 118 119 137 150 Greatest Support 155 | 40 40 40 40 85 85 80 56 28 28 44 118 118 125 106 106 115 120 118 135 145 155 Greatest Overweight (x) 9 | . . . 7 9 1 3 3 3 3 2 2 . 6 1 . 1 1 1 1 . 6 Average Overweight (x) 1 | . . . 4 . . 2 2 2 2 1 . . 2 . . . . . . . 1 Largest Inventory Capacity 35 | 8 8 8 35 35 20 20 20 20 20 20 20 20 20 20 20 20 20 20 20 20 20 Average Capacity 20 | 7 8 8 26 20 20 20 20 20 20 20 20 20 20 20 20 20 20 20 20 20 18 Most Carried 35 | 8 8 8 35 34 20 20 20 20 20 20 20 20 20 20 20 20 20 20 20 20 20 Average Carried 19 | 6 8 7 21 19 19 19 19 20 19 19 19 19 17 19 19 19 19 19 19 19 16 Final Capacity 35 | 8 8 8 35 20 20 20 20 20 20 20 20 20 20 20 20 20 20 20 20 20 5 Final Carried 35 | 8 8 8 35 20 20 20 20 20 20 20 20 20 17 18 20 20 20 20 20 20 3 Scrap Suit Usage (%) 1 | . . . . . . . . . . . . . . . . . . . . . 5 Parts Cannibalized 12 | . . . . . . . . . . . . . . . . . . . . . 12 Class Distribution -------------------- 17% | Hacker-Tank 14% | Mutant 12% | Scavenger-Skirmisher 8% | Derelict-Skirmisher 7% | Hacker-Gunner 6% | Hauler-Mutant 6% | Scavenger-Tank 5% | Hacker-Skirmisher 5% | Scavenger-Mutant 4% | Skirmisher 3% | Scavenger-Gunner 3% | Scavenger-Scrapper Dominant Class ---------------- Mutant | -10/Materials Mutant | -10/Subcaves Mutant | -9/Scraptown Derelict-Skirmisher | -6/Factory Skirmisher | -6/Lower Caves Scavenger-Skirmisher | -6/Lower Caves Scavenger-Skirmisher | -6/Zion Scavenger-Mutant | -5/Proximity Caves Scavenger-Assassin | -5/Factory Scavenger-Skirmisher | -5/Waste Hacker-Tank | -5/Factory Hacker-Tank | -5/Upper Caves Hacker-Tank | -5/Upper Caves Hacker-Mutant | -5/Zhirov Hacker-Gunner | -4/Proximity Caves Hacker-Tank | -4/Factory Hacker-Skirmisher | -3/Research Hacker-Skirmisher | -3/Testing Hacker-Gunner | -2/Research Scavenger-Tank | -2/Quarantine Scavenger-Scrapper | -2/Protoforge Resources | -11 -10 -10 -9 -6 -6 -6 -6 -5 -5 -5 -5 -5 -5 -5 -4 -4 -3 -3 -2 -2 -2 ----------- Run | Yrd Mat Sub Scr Fac Low Low Zio Pro Fac Was Fac Upp Upp Zhi Pro Fac Res Tes Res Qua Frg Matter Collected 9792 | 306 . 18 130 454 465 210 147 30 87 . 414 142 393 . 320 381 477 729 666 547 3876 Remotely . | . . . . . . . . . . . . . . . . . . . . . . Salvage Created 17392 | 219 . 32 . 576 899 367 . . 87 . 1605 433 826 . 145 598 527 700 1763 1548 7067 Parts 752 | 19 . 3 . 39 21 10 . . . . 58 17 24 . 7 16 25 28 92 68 325 Haulers Intercepted 6 | . . . . . 1 . . . 1 . 2 . . . . . 1 1 . . . Recyclers Shooed 3 | . . . . 1 . . . . . . . . . . . . 2 . . . . Parts Field Recycled . | . . . . . . . . . . . . . . . . . . . . . . Retrieved Matter . | . . . . . . . . . . . . . . . . . . . . . . Parts Self-Destructed 73 | . . . . . 16 10 1 . . . . 13 28 . 5 . . . . . . Prevented 12 | . . . . . 6 5 . . . . . . 1 . . . . . . . . Parts Restored . | . . . . . . . . . . . . . . . . . . . . . . Kills | -11 -10 -10 -9 -6 -6 -6 -6 -5 -5 -5 -5 -5 -5 -5 -4 -4 -3 -3 -2 -2 -2 ------- Run | Yrd Mat Sub Scr Fac Low Low Zio Pro Fac Was Fac Upp Upp Zhi Pro Fac Res Tes Res Qua Frg Combat Hostiles Destroyed 277 | . . 1 . 10 20 6 . . . . 24 9 12 . 6 8 3 11 24 23 120 Melee 2 | . . . . . . 1 . . . . . . . . . . . . . . 1 Guns 232 | . . . . 9 11 2 . . . . 24 5 10 . 1 7 2 10 24 23 104 Cannons 1 | . . . . . . . . . . . . . . . . . 1 . . . . AOE 34 | . . 1 . 1 9 . . . . . . 4 . . 4 . . . . . 15 Classes Destroyed 27 | 2 . 1 . 7 3 2 . . . . 1 . 1 . . . . . . . 10 Worker 9 | . . . . 3 . . . . . . 3 . . . . . . 1 2 . . Builder 1 | . . . . 1 . . . . . . . . . . . . . . . . . Tunneler 9 | 6 . . . . . . . . . . . . . . . . 2 . 1 . . Hauler 6 | . . . . . 1 . . . 1 . 2 . . . . . 1 1 . . . Recycler 4 | 1 . . . . . . . . . . . . . . . . 1 . 2 . . Carrier 1 | . . . . . . . . . . . . . . . . . . . . . 1 Minesweeper 3 | . . . . . 2 1 . . . . . . . . . . . . . . . Mechanic 6 | . . . . . . 1 . . . . . . . . . . . . . . 5 Operator 1 | . . . . . . . . . . . . . . . . . . . . . 1 Drone 11 | . . . . . . . . . . . . . . . . . . . . . 11 Watcher 4 | . . . . 1 . . . . . . 1 . . . . . 1 . . . 1 Swarmer 39 | . . . . . 6 . . . . . 2 4 . . 5 . . . 6 5 11 Saboteur 2 | . . . . . . . . . . . . . . . . . . . . . 2 Grunt 79 | . . . . 6 10 4 . . . . 9 5 5 . . 4 . 4 5 8 19 Brawler 10 | . . . . . . . . . . . . . 2 . . . . . . 1 7 Duelist 11 | . . . . 1 2 . . . . . . . 3 . . . . . . . 5 Protector 2 | . . . . . . . . . . . . . . . . . . . . . 2 Sentry 16 | . . . . 2 2 1 . . . . . . 1 . 1 2 1 . 4 . 2 Specialist 2 | . . . . . . . . . . . . . . . . . . . . . 2 Hunter 26 | . . . . . . . . . . . 5 . 1 . . 2 . 4 . 4 10 Programmer 39 | . . . . 1 . . . . . . 8 . . . . . 2 3 9 5 11 Behemoth 1 | . . . . . . 1 . . . . . . . . . . . . . . . Hotshot 7 | . . . . . . . . . . . . . . . . . . . . . 7 Decapitator 3 | . . . . . . . . . . . . . . . . . . . . . 3 Striker 16 | . . . . . . . . . . . . . . . . . . . . . 16 Executioner 11 | . . . . . . . . . . . . . . . . . . . . . 11 Subdweller 1 | . . 1 . . . . . . . . . . . . . . . . . . . Scrapper 1 | . . . . . . . . . . . . . . . . . . . . . 1 Packrat 1 | . . . . . . . . . . . . 1 . . . . . . . . . Best Kill Streak 24 | 3 . 1 . 7 6 2 . . 1 . 5 5 7 . 5 3 2 2 4 7 24 Combat Bots Only 23 | . . 1 . 4 6 2 . . . . 4 5 7 . 5 3 2 2 4 7 23 Max Kills in Single Turn 4 | 1 . 1 . 2 3 1 . . 1 . 2 3 1 . 4 1 1 1 2 2 3 Gunslinging 2 | . . . . . 1 . . . . . . . . . . . . . 1 1 2 Exploded 4 | . . 1 . 1 3 . . . . . . 3 . . 4 . . . . . 3 Melee 1 | . . . . . . 1 . . . . . . . . . . . . . . 1 Uniques/NPCs Destroyed . | . . . . . . . . . . . . . . . . . . . . . . Combat | -11 -10 -10 -9 -6 -6 -6 -6 -5 -5 -5 -5 -5 -5 -5 -4 -4 -3 -3 -2 -2 -2 -------- Run | Yrd Mat Sub Scr Fac Low Low Zio Pro Fac Was Fac Upp Upp Zhi Pro Fac Res Tes Res Qua Frg Hostile Shots Fired 1514 | . . . . 77 90 49 . . . 1 91 14 98 . 10 144 12 157 93 115 563 Missed 517 | . . . . 36 26 19 . . . . 26 . 23 . 2 60 6 53 30 32 204 Hits 997 | . . . . 41 64 30 . . . 1 65 14 75 . 8 84 6 104 63 83 359 Melee 28 | . . . . . . . . . . 1 . . 4 . . . . . . . 23 Projectile 969 | . . . . 41 64 30 . . . . 65 14 71 . 8 84 6 104 63 83 336 AOE 3 | . . . . . . . . . . . . . . . . . . . . . 3 Critical Strikes 51 | . . . . 1 1 1 . . . 1 1 . 2 . . 5 . 5 5 5 24 Actively Blocked 1 | . . . . . . . . . . . . . . . . 1 . . . . . Part Disruptions 9 | . . . . . 1 1 . . . . . . . . . 3 1 . . 1 2 Damage Taken 22372 | . . . . 700 1171 546 27 . . 49 1239 263 1714 . 142 1603 226 1639 1098 1489 10466 Core 2474 | . . . . 105 68 44 27 . . . 99 19 190 . 28 198 33 208 182 31 1242 Absorbed by Shields 1856 | . . . . . . . . . . . . . . . . . . 517 396 540 403 Reduced by Siege Mode 271 | . . . . . . . . . . . 15 10 117 . . . . . . 9 120 Redirected to Shielding 206 | . . . . . . . . . . . . . . . . 102 26 . . . 78 Ignored by Resistances 128 | . . . . . . . . . . . . . . . . 119 9 . . . . Regen/Repaired (Parts) 943 | . . . . . . . . . . . 68 . . . . 227 . 199 . 229 220 Core Remaining (%) 82 | 100 . . 100 . . . . 71 . . . . . . 66 82 . 76 . . . Volleys Fired 657 | 12 3 3 . 27 51 28 . 1 2 2 42 8 31 . 5 34 31 44 50 46 237 Largest 4 | 2 2 2 . 3 3 2 . 1 3 1 1 1 4 . 4 4 4 4 4 4 4 Hottest 376 | 60 60 60 . 140 190 155 . 43 82 250 250 250 250 . 244 244 328 376 258 258 352 Shots Fired 1742 | 24 6 6 . 73 93 36 . 1 6 2 42 10 46 . 16 99 69 139 175 151 748 Gun 1627 | 24 6 6 . 69 73 25 . . 6 2 37 7 46 . 14 99 59 121 167 142 724 Cannon 84 | . . . . . 16 10 . . . . 5 . . . . . 10 18 8 9 8 Launcher 30 | . . . . 4 4 . . 1 . . . 3 . . 2 . . . . . 16 Special 1 | . . . . . . 1 . . . . . . . . . . . . . . . Kinetic 821 | 12 3 3 . 46 35 . . . 6 . . . 12 . 8 41 15 31 83 71 455 Thermal 846 | . . . . 23 38 25 . . . 2 42 7 34 . 6 58 54 108 92 80 277 Explosive 30 | . . . . 4 4 . . 1 . . . 3 . . 2 . . . . . 16 Electromagnetic 44 | 12 3 3 . . 16 10 . . . . . . . . . . . . . . . Robot Hit Streak 60 | 6 2 3 . 9 14 14 . . 8 2 13 9 19 . 14 60 21 13 12 11 20 Robot Miss Streak 13 | 3 1 2 . 3 3 3 . . 4 2 9 2 3 . . 2 1 4 6 5 13 Penetration Max 3 | . . . . 2 . . . . . . . . . . . . . 1 1 1 3 Secondary Targets 44 | . . . . 1 2 . . . . . . . . . . 2 . 2 3 5 29 Max Gunslinging Chain 2 | . . . . 1 1 . . . . . . . . . . 1 . 1 1 1 2 Shots Hit Robots 1067 | 13 3 4 . 50 71 29 . . 6 2 37 7 39 . 9 75 44 79 94 82 423 Core Hits 724 | 8 2 2 . 34 52 24 . . 7 1 73 22 38 . 5 24 18 23 48 42 301 Critical Kills 97 | . . . . 2 1 . . . . . . . . . . . . 5 14 12 63 Critical Parts Destroyed 105 | . . . . . 1 . . . . . . . . . . . . 16 15 10 63 Critical Strikes 234 | . . . . 2 3 . . . . . . . 1 . . 2 3 21 33 23 146 Burn 11 | . . . . . . . . . . . . . 1 . . 2 3 . . . 5 Destroy 222 | . . . . 2 2 . . . . . . . . . . . . 21 33 23 141 Corrupt 1 | . . . . . 1 . . . . . . . . . . . . . . . . Melee Attacks 6 | . . . . . . . . 1 3 . 2 . . . . . . . . . . Impact . | . . . . . . . . . . . . . . . . . . . . . . Slashing 6 | . . . . . . . . 1 3 . 2 . . . . . . . . . . Piercing . | . . . . . . . . . . . . . . . . . . . . . . Sneak Attacks 1 | . . . . . . . . . 1 . . . . . . . . . . . . Combat Hostiles . | . . . . . . . . . . . . . . . . . . . . . . Follow-up Attacks . | . . . . . . . . . . . . . . . . . . . . . . Damage Inflicted 42820 | 172 33 165 . 1761 2456 733 . . 161 243 3337 1106 2231 . 594 1909 1340 2447 3278 2491 18363 Guns 34900 | 172 33 40 . 1195 1374 582 . . 84 243 3327 751 2231 . 219 1899 1241 2319 3278 2491 13421 Cannons 611 | . . . . . 296 141 . . . . . . . . . . 53 121 . . . Explosions 7149 | . . 125 . 566 786 . . . . . . 355 . . 375 . . . . . 4942 Melee 77 | . . . . . . . . . 77 . . . . . . . . . . . . Ramming 83 | . . . . . . 10 . . . . 10 . . . . 10 46 7 . . . Kinetic 15155 | 78 20 10 . 737 543 . . . 84 . . . 237 . 80 707 222 455 1620 1249 9113 Thermal 20006 | . . 125 . 557 831 582 . . . 243 3327 751 1994 . 139 1192 1072 1985 1658 1242 4308 Explosive 6925 | . . . . 467 786 . . . . . . 355 . . 375 . . . . . 4942 Electromagnetic 574 | 94 13 30 . . 296 141 . . . . . . . . . . . . . . . Impact . | . . . . . . . . . . . . . . . . . . . . . . Slashing 77 | . . . . . . . . . 77 . . . . . . . . . . . . Piercing . | . . . . . . . . . . . . . . . . . . . . . . Highest Corruption 19 | . . . . . . . 17 . . . 5 5 5 5 5 1 1 6 5 6 19 Average Corruption 5 | . . . . . . . 10 . . . 3 5 5 5 5 1 1 1 2 5 11 Corruption Purged . | . . . . . . . . . . . . . . . . . . . . . . Corruption Blocked . | . . . . . . . . . . . . . . . . . . . . . . Effects 251 | . . . . . . . 1 . . . 16 22 22 9 12 . 1 19 15 25 109 Message Errors 66 | . . . . . . . . . . . 4 4 7 4 5 . . 5 4 11 22 Matter Fused 50 | . . . . . . . . . . . 4 7 3 4 1 . . 5 4 4 18 Heat Flow Errors 23 | . . . . . . . 1 . . . 1 . 1 . . . . 3 3 5 9 Energy Discharges 29 | . . . . . . . . . . . 3 6 3 . . . 1 . . 3 13 Parts Rejected 5 | . . . . . . . . . . . . . . . . . . . . . 5 Parts Fused 1 | . . . . . . . . . . . . . . . . . . . . . 1 Data Loss (minor) 25 | . . . . . . . . . . . 3 1 3 1 2 . . 4 1 1 9 Data Loss (major) 11 | . . . . . . . . . . . . 2 2 . 2 . . 1 . 1 3 Misfires 6 | . . . . . . . . . . . . 2 1 . 2 . . . . . 1 Alerts 6 | . . . . . . . . . . . 1 . 1 . . . . . 2 . 2 Misdirections 2 | . . . . . . . . . . . . . . . . . . . . . 2 Weapon Failures 27 | . . . . . . . . . . . . . 1 . . . . 1 1 . 24 Overload Shots . | . . . . . . . . . . . . . . . . . . . . . . Overflow Damage 403 | . . . . 63 71 5 . . 7 . . . . . 20 . . 25 . . 212 Projectiles 48 | . . . . . 18 5 . . . . . . . . . . . 25 . . . Explosions 348 | . . . . 63 53 . . . . . . . . . 20 . . . . . 212 Melee 7 | . . . . . . . . . 7 . . . . . . . . . . . . Knockbacks 1 | . . . . . . . . . . . 1 . . . . . . . . . . Impact 1 | . . . . . . . . . . . 1 . . . . . . . . . . Kinetic . | . . . . . . . . . . . . . . . . . . . . . . Secondary . | . . . . . . . . . . . . . . . . . . . . . . Self-Inflicted Damage 425 | . . . . 131 19 . . . . . . . . . . . . . . . 275 Shots 5 | . . . . 2 1 . . . . . . . . . . . . . . . 2 Rammed 5 | . . . . . . 3 . . . . 2 . . . . . . . . . . Targets Rammed 15 | . . . . . . 4 . . . . 2 . . . . 2 6 1 . . . Kicked 9 | . . . . . . . . . . . . . . . . 2 6 1 . . . Crushed 1 | . . . . . . 1 . . . . . . . . . . . . . . . Highest Temperature 558 | . . . . 95 309 153 113 4 30 248 249 273 386 . 207 211 294 558 407 371 253 Average Temperature 96 | . . . . 29 81 56 59 3 16 132 60 118 148 . 94 75 78 143 104 107 101 Received Heat Transfer 2959 | . . . . 252 429 144 . . . . 111 90 429 . 9 192 27 127 407 103 639 Effects 17 | . . . . . . . . . . . . . 4 . 1 1 . 2 4 2 3 Shutdowns 4 | . . . . . . . . . . . . . 1 . . . . 1 2 . . Energy Bleed 6 | . . . . . . . . . . . . . . . . 1 . . 2 . 3 Interference 6 | . . . . . . . . . . . . . 3 . 1 . . . . 2 . Short Circuit 1 | . . . . . . . . . . . . . . . . . . 1 . . . Siege Activations 7 | . . . . . . . . . . . 2 1 2 . . . . . . 1 1 Total Turns 114 | . . . . . . . . . . . 25 11 49 . . . . . . 8 21 Longest Duration 32 | . . . . . . . . . . . 13 11 32 . . . . . . 8 21 Martial Activations . | . . . . . . . . . . . . . . . . . . . . . . Shielding Activations . | . . . . . . . . . . . . . . . . . . . . . . Robots Disrupted 1 | . . . . . . 1 . . . . . . . . . . . . . . . Combat Hostiles 1 | . . . . . . 1 . . . . . . . . . . . . . . . Robots Corrupted 2 | . . . . . 1 1 . . . . . . . . . . . . . . . Combat Hostiles 1 | . . . . . . 1 . . . . . . . . . . . . . . . Parts Fried 8 | . . . . . 5 3 . . . . . . . . . . . . . . . Impact Corruptions . | . . . . . . . . . . . . . . . . . . . . . . Robots Melted 7 | . . . . . . 2 . . . . . . 2 . 1 1 . 1 . . . Combat Hostiles 7 | . . . . . . 2 . . . . . . 2 . 1 1 . 1 . . . Parts Melted 65 | . . . . 1 4 9 . . . . 15 3 8 . 2 4 2 5 3 1 8 Heat Transferred 29013 | . . 100 . 1075 1900 1325 . . . 350 4675 1100 2918 . 185 1628 1517 2146 1924 1480 6690 Parts Sabotaged 2 | . . . . . . . . . . . . . 2 . . . . . . . . Parts Stolen . | . . . . . . . . . . . . . . . . . . . . . . Parts Stripped . | . . . . . . . . . . . . . . . . . . . . . . Power Chain Reactions 1 | . . 1 . . . . . . . . . . . . . . . . . . . Alert | -11 -10 -10 -9 -6 -6 -6 -6 -5 -5 -5 -5 -5 -5 -5 -4 -4 -3 -3 -2 -2 -2 ------- Run | Yrd Mat Sub Scr Fac Low Low Zio Pro Fac Was Fac Upp Upp Zhi Pro Fac Res Tes Res Qua Frg Maximum Alert Level 5 | . . . . 2 . . . . . . 1 . . . . . . . 2 2 5 Low Security (%) 55 | 100 100 . . 52 . . . . 100 100 75 . . . . 100 100 100 42 21 . Level 1 17 | . . . . 2 . . . . . . 24 . . . . . . . 55 47 13 Level 2 14 | . . . . 45 . . . . . . . . . . . . . . 1 31 28 Level 3 1 | . . . . . . . . . . . . . . . . . . . . . 4 Level 4 1 | . . . . . . . . . . . . . . . . . . . . . 7 Level 5 10 | . . . . . . . . . . . . . . . . . . . . . 45 High Security . | . . . . . . . . . . . . . . . . . . . . . . Max Security . | . . . . . . . . . . . . . . . . . . . . . . Peak Influence 2704 | 10 . . . 480 . . . . 12 . 377 . . . . 67 52 162 424 618 2704 Initial 323 | . . . . . . . . . . . . . . . . . 30 . 90 238 323 Average 381 | 1 . . . 218 . . . . 1 . 92 . . . . 21 8 25 211 335 1278 Influence Increases 8772 | 35 . . . 712 625 276 . . 21 . 716 200 295 . 130 295 166 422 774 769 3336 Destroy 0b10 Robot/C 5320 | . . . . 200 400 140 . . . . 480 180 260 . 120 160 60 220 480 460 2160 Destroy 0b10 Robot/NC 280 | 35 . . . 25 15 10 . . 5 . 30 . . . . . 25 10 25 . 100 Destroy Leader 836 | . . . . 62 . 20 . . 2 . 104 20 30 . 10 40 24 42 120 80 282 Allied During Kill 6 | . . . . . . 1 . . . . . . 5 . . . . . . . . Trap Triggered on 0b10 10 | . . . . . . . . . . . . . . . . . . 10 . . . Successful Hack 218 | . . . . . . . . . 12 . 41 . . . . . 24 54 14 73 . Disable Machine 735 | . . . . 345 . . . . . . . . . . . . 15 60 15 90 210 Destroy Structure 677 | . . . . 80 . . . . 2 . 16 . . . . 20 18 26 45 21 449 Lose Combat Pursuer 690 | . . . . . 210 105 . . . . 45 . . . . 75 . . 75 45 135 Influence Decreases 6113 | 35 . . . 256 785 572 . . 21 . 342 490 379 . 130 236 225 260 512 618 1252 Entered New Map 922 | . . . . . 169 57 . . . . . 140 17 . . . 29 . 72 186 252 Time Decay 4511 | 35 . . . 246 546 445 . . 21 . 322 350 302 . 130 176 186 240 440 422 650 Lost Part 660 | . . . . 10 70 50 . . . . 20 . 60 . . 60 10 20 . 10 350 Lost Ally 20 | . . . . . . 20 . . . . . . . . . . . . . . . Squads Dispatched 53 | . . . . 4 . 1 . . 1 . 11 . 1 . . 6 4 5 4 9 7 Investigation 23 | . . . . 3 . . . . . . 4 . . . . 4 1 1 2 3 5 Extermination 14 | . . . . 1 . . . . . . 4 . . . . 1 1 2 2 2 1 Reinforcement 12 | . . . . . . . . . 1 . 3 . . . . 1 2 2 . 2 1 Assault 4 | . . . . . . 1 . . . . . . 1 . . . . . . 2 . Garrison . | . . . . . . . . . . . . . . . . . . . . . . Intercept . | . . . . . . . . . . . . . . . . . . . . . . Searches Triggered . | . . . . . . . . . . . . . . . . . . . . . . Construction Impeded . | . . . . . . . . . . . . . . . . . . . . . . Haulers Reinforced 4 | . . . . . . . . . 1 . 1 . . . . . 1 1 . . . Active Scanning Responses . | . . . . . . . . . . . . . . . . . . . . . . Cargo Convoy Interrupts . | . . . . . . . . . . . . . . . . . . . . . . Stealth | -11 -10 -10 -9 -6 -6 -6 -6 -5 -5 -5 -5 -5 -5 -5 -4 -4 -3 -3 -2 -2 -2 --------- Run | Yrd Mat Sub Scr Fac Low Low Zio Pro Fac Was Fac Upp Upp Zhi Pro Fac Res Tes Res Qua Frg Distress Signals 17 | . . . . 1 . . . . . . 1 . . . . 1 . . 2 . 12 Communications Jammed 199 | . . . . . . . . . . . . . . . . 2 . 12 1 . 184 Distress Signals 199 | . . . . . . . . . . . . . . . . 2 . 12 1 . 184 Times Spotted 450 | . 2 2 . 12 30 18 1 . . 6 31 6 14 . 6 25 12 25 32 32 196 Peak Tracking Total 14 | . 2 2 . 4 8 5 1 . . 6 5 5 7 . 5 13 4 6 6 4 14 Tactical Retreats 25 | . . . . . 6 3 . . . . 3 . . . . 2 . . 3 2 6 Traps | -11 -10 -10 -9 -6 -6 -6 -6 -5 -5 -5 -5 -5 -5 -5 -4 -4 -3 -3 -2 -2 -2 ------- Run | Yrd Mat Sub Scr Fac Low Low Zio Pro Fac Was Fac Upp Upp Zhi Pro Fac Res Tes Res Qua Frg Traps Triggered 9 | . . . . . . . . . 1 . 3 . . . . . 1 2 1 . 1 Indirectly . | . . . . . . . . . . . . . . . . . . . . . . Trap Hack Attempts . | . . . . . . . . . . . . . . . . . . . . . . Triggered . | . . . . . . . . . . . . . . . . . . . . . . Disarmed . | . . . . . . . . . . . . . . . . . . . . . . Reprogrammed . | . . . . . . . . . . . . . . . . . . . . . . Reused 7 | . . . . . 3 3 . . . . . . . . . . . 1 . . . Traps Extracted . | . . . . . . . . . . . . . . . . . . . . . . Installed 8 | . . . . . 3 3 . . . . . . . . . . . 1 . . 1 Triggered 7 | . . . . . 3 3 . . . . . . . . . . . 1 . . . Most Traps Carried 7 | . . . 3 3 6 7 5 3 3 3 3 3 3 3 3 3 3 3 2 2 2 Machines | -11 -10 -10 -9 -6 -6 -6 -6 -5 -5 -5 -5 -5 -5 -5 -4 -4 -3 -3 -2 -2 -2 ---------- Run | Yrd Mat Sub Scr Fac Low Low Zio Pro Fac Was Fac Upp Upp Zhi Pro Fac Res Tes Res Qua Frg Machines Disabled 52 | . . . . 23 . . . . . . . . . . . . 1 4 1 7 16 Max in Single Turn 20 | . . . . 20 . . . . . . . . . . . . 1 1 1 1 3 Garrison Access 4 | . . . . 1 . . . . . . . . . . . 1 . . 1 1 . Machines Repaired . | . . . . . . . . . . . . . . . . . . . . . . Machines Dismantled . | . . . . . . . . . . . . . . . . . . . . . . Machines Sabotaged . | . . . . . . . . . . . . . . . . . . . . . . Overloaded Fab Kills . | . . . . . . . . . . . . . . . . . . . . . . Hacking | -11 -10 -10 -9 -6 -6 -6 -6 -5 -5 -5 -5 -5 -5 -5 -4 -4 -3 -3 -2 -2 -2 --------- Run | Yrd Mat Sub Scr Fac Low Low Zio Pro Fac Was Fac Upp Upp Zhi Pro Fac Res Tes Res Qua Frg Machines Accessed 63 | . . . 3 6 1 . . . 1 . 11 1 . 4 . 6 4 7 3 6 10 Terminals 20 | . . . . 2 1 . . . . . 4 . . . . 1 2 4 . 3 3 Fabricators 8 | . . . . . . . . . . . 2 . . . . . . 1 1 . 4 Repair Stations 6 | . . . . . . . . . . . 2 . . . . 1 1 1 . 1 . Recycling Units 12 | . . . . 3 . . . . . . 2 . . . . 3 . . 1 . 3 Scanalyzers 5 | . . . . . . . . . 1 . 1 . . . . . 1 1 . 1 . Garrison Access 4 | . . . . 1 . . . . . . . . . . . 1 . . 1 1 . Total Hacks 177 | . . . 21 9 3 . . . 5 . 28 1 . 17 . 10 11 22 6 16 28 Successful 108 | . . . 21 4 3 . . . 2 . 17 1 . 17 . 7 7 11 5 7 6 Failed 69 | . . . . 5 . . . . 3 . 11 . . . . 3 4 11 1 9 22 Catastrophic 20 | . . . . 1 . . . . . . 1 . . . . . 3 3 . 5 7 Database Lockouts . | . . . . . . . . . . . . . . . . . . . . . . Manual 37 | . . . . 8 . . . . . . 10 . . . . 5 2 3 1 2 6 Terminals 46 | . . . . 4 3 . . . . . 10 . . . . 1 4 11 . 8 5 Fabricators 35 | . . . . . . . . . . . 8 . . . . . . 4 4 . 19 Repair Stations 18 | . . . . . . . . . . . 4 . . . . 4 1 5 . 4 . Recycling Units 15 | . . . . 4 . . . . . . 2 . . . . 4 . . 1 . 4 Scanalyzers 20 | . . . . . . . . . 5 . 4 . . . . . 6 2 . 3 . Garrison Access 4 | . . . . 1 . . . . . . . . . . . 1 . . 1 1 . Terminal Hacks 56 | . . . 21 . 3 . . . . . 4 1 . 17 . 1 1 5 . 3 . Record 27 | . . . 19 . 3 . . . . . . . . 5 . . . . . . . Part Schematic 6 | . . . . . . . . . . . . . . 4 . . . 2 . . . Robot Analysis 4 | . . . . . . . . . . . . . . 4 . . . . . . . Prototype ID Bank 5 | . . . . . . . . . . . 1 . . 4 . . . . . . . Open Door 2 | . . . 1 . . . . . . . . 1 . . . . . . . . . Level Access Points 1 | . . . . . . . . . . . . . . . . . 1 . . . . Fabricator Index 1 | . . . . . . . . . . . . . . . . 1 . . . . . Recycling Unit Index 1 | . . . . . . . . . . . 1 . . . . . . . . . . Scanalyzer Index 1 | . . . . . . . . . . . 1 . . . . . . . . . . Locate Traps 2 | . . . . . . . . . . . 1 . . . . . . . . 1 . Recall Extermination 1 | . . . . . . . . . . . . . . . . . . . . 1 . Recall Reinforcements 1 | . . . . . . . . . . . . . . . . . . 1 . . . Registered Prototypes 1 | . . . . . . . . . . . . . . . . . . . . 1 . Zone Layout 1 | . . . . . . . . . . . . . . . . . . 1 . . . Proto ID Catalog 1 | . . . 1 . . . . . . . . . . . . . . . . . . Protovariant Controls 1 | . . . . . . . . . . . . . . . . . . 1 . . . Fabricator Hacks 7 | . . . . . . . . . . . 2 . . . . . . 1 3 . 1 Network Status 2 | . . . . . . . . . . . 1 . . . . . . . 1 . . Load Schematic 4 | . . . . . . . . . . . 1 . . . . . . 1 1 . 1 Build 1 | . . . . . . . . . . . . . . . . . . . 1 . . Repair Station Hacks 8 | . . . . . . . . . . . 2 . . . . 1 . 3 . 2 . Scan Component 5 | . . . . . . . . . . . 1 . . . . 1 . 2 . 1 . Repair 3 | . . . . . . . . . . . 1 . . . . . . 1 . 1 . Recycling Unit Hacks . | . . . . . . . . . . . . . . . . . . . . . . Scanalyzer 11 | . . . . . . . . . 2 . 3 . . . . . 6 . . . . Insert Component 5 | . . . . . . . . . 1 . 1 . . . . . 3 . . . . Analyze 3 | . . . . . . . . . . . 1 . . . . . 2 . . . . Retrieve Study 3 | . . . . . . . . . 1 . 1 . . . . . 1 . . . . Garrison Access Hacks 4 | . . . . 1 . . . . . . . . . . . 1 . . 1 1 . Seal Access 4 | . . . . 1 . . . . . . . . . . . 1 . . 1 1 . Unauthorized Hacks 22 | . . . . 3 . . . . . . 6 . . . . 4 . 2 1 1 5 Terminals 5 | . . . . . . . . . . . 1 . . . . . . 2 . . 2 Track 1 | . . . . . . . . . . . . . . . . . . . . . 1 Assimilate 1 | . . . . . . . . . . . . . . . . . . 1 . . . Botnet 3 | . . . . . . . . . . . 1 . . . . . . 1 . . 1 Fabricators 3 | . . . . . . . . . . . 3 . . . . . . . . . . Report 1 | . . . . . . . . . . . 1 . . . . . . . . . . Liberate 1 | . . . . . . . . . . . 1 . . . . . . . . . . Haulers 1 | . . . . . . . . . . . 1 . . . . . . . . . . Repair Stations 2 | . . . . . . . . . . . . . . . . 1 . . . 1 . Patch 2 | . . . . . . . . . . . . . . . . 1 . . . 1 . Recycling Units 12 | . . . . 3 . . . . . . 2 . . . . 3 . . 1 . 3 Fedlink 12 | . . . . 3 . . . . . . 2 . . . . 3 . . 1 . 3 Scanalyzers . | . . . . . . . . . . . . . . . . . . . . . . Garrison Access . | . . . . . . . . . . . . . . . . . . . . . . Data Cores Recovered . | . . . . . . . . . . . . . . . . . . . . . . Used . | . . . . . . . . . . . . . . . . . . . . . . Hacking Detections 37 | . . . . 2 1 . . . 1 . 8 . . . . 1 4 7 1 5 7 Full Trace Events 10 | . . . . . 1 . . . . . 2 . . . . . 1 1 1 2 2 Feedback Events 1 | . . . . . . . . . . . . . . . . . . 1 . . . Corruption 1 | . . . . . . . . . . . . . . . . . . 1 . . . Feedback Blocked 1 | . . . . . . . . . . . . . . . . . . . . . 1 Robot Schematics Acquired . | . . . . . . . . . . . . . . . . . . . . . . Robots Built . | . . . . . . . . . . . . . . . . . . . . . . Authchips . | . . . . . . . . . . . . . . . . . . . . . . Time . | . . . . . . . . . . . . . . . . . . . . . . Total Robot Build Rating . | . . . . . . . . . . . . . . . . . . . . . . Part Schematics Acquired 9 | . . . . . . . . . . . 1 . . 4 . . 2 2 . . . Parts Built 1 | . . . . . . . . . . . . . . . . . . . 1 . . Authchips . | . . . . . . . . . . . . . . . . . . . . . . Time 111 | . . . . . . . . . . . . . . . . . . . 111 . . Total Part Build Rating 9 | . . . . . . . . . . . . . . . . . . . 9 . . Part Studies Acquired 3 | . . . . . . . . . 1 . 1 . . . . . 1 . . . . Parts Repaired 3 | . . . . . . . . . . . 1 . . . . . . 1 . 1 . Time 129 | . . . . . . . . . . . 25 . . . . . . 68 . 36 . Parts Recycled . | . . . . . . . . . . . . . . . . . . . . . . Recycled Matter . | . . . . . . . . . . . . . . . . . . . . . . Retrieved Matter . | . . . . . . . . . . . . . . . . . . . . . . Retrieved Components . | . . . . . . . . . . . . . . . . . . . . . . Parts Scanalyzed 3 | . . . . . . . . . 1 . . . . . . . 2 . . . . Part Schematics Acquired 3 | . . . . . . . . . . . 1 . . . . . 2 . . . . Parts Damaged 1 | . . . . . . . . . 1 . . . . . . . . . . . . Bothacking | -11 -10 -10 -9 -6 -6 -6 -6 -5 -5 -5 -5 -5 -5 -5 -4 -4 -3 -3 -2 -2 -2 ------------ Run | Yrd Mat Sub Scr Fac Low Low Zio Pro Fac Was Fac Upp Upp Zhi Pro Fac Res Tes Res Qua Frg Used RIF Installer . | . . . . . . . . . . . . . . . . . . . . . . Robots Hacked . | . . . . . . . . . . . . . . . . . . . . . . Non-combat . | . . . . . . . . . . . . . . . . . . . . . . Combat . | . . . . . . . . . . . . . . . . . . . . . . Robot Hacks Applied . | . . . . . . . . . . . . . . . . . . . . . . Relay Couplers Released . | . . . . . . . . . . . . . . . . . . . . . . Fabnet Peak Effective % . | . . . . . . . . . . . . . . . . . . . . . . Robots Rewired 3 | . . . . . . 1 . . . . . . 2 . . . . . . . . Allies Hacked . | . . . . . . . . . . . . . . . . . . . . . . Hacks Repelled . | . . . . . . . . . . . . . . . . . . . . . . Allies | -11 -10 -10 -9 -6 -6 -6 -6 -5 -5 -5 -5 -5 -5 -5 -4 -4 -3 -3 -2 -2 -2 -------- Run | Yrd Mat Sub Scr Fac Low Low Zio Pro Fac Was Fac Upp Upp Zhi Pro Fac Res Tes Res Qua Frg Total Allies 3 | . . . . . . 1 . . . . . . 2 . . . . . . . . Largest Group 2 | . . . . . . 1 . . . . . . 2 2 2 . . . . . . Highest-Rated Group 59 | . . . . . . 29 . . . . . . 59 59 59 . . . . . . Highest-Rated Ally 30 | . . . . . . 29 . . . . . . 30 30 30 . . . . . . Initial UFD Resources 92 | . . . . 23 39 39 39 42 42 42 42 56 56 56 60 60 79 79 82 92 92 Total Orders 2 | . . . . . . . . . . . 2 . . . . . . . . . . RETURN 2 | . . . . . . . . . . . 2 . . . . . . . . . . Ally Attacks 27 | . . . . . . 7 . . . . . . 18 . 2 . . . . . . Total Damage 580 | . . . . . . 112 . . . . . . 419 . 49 . . . . . . Kills 2 | . . . . . . 1 . . . . . . 1 . . . . . . . . Allies Corrupted . | . . . . . . . . . . . . . . . . . . . . . . Allies Melted 3 | . . . . . . . . . . . . . . . . . . . . . 3 Intel | -11 -10 -10 -9 -6 -6 -6 -6 -5 -5 -5 -5 -5 -5 -5 -4 -4 -3 -3 -2 -2 -2 ------- Run | Yrd Mat Sub Scr Fac Low Low Zio Pro Fac Was Fac Upp Upp Zhi Pro Fac Res Tes Res Qua Frg Active Infowar (turns) 19721 | 195 53 259 1563 1119 2506 1848 1561 786 143 221 1757 781 450 197 559 485 908 1098 838 596 1798 Optics 333 | . . . . . . . . . . . . . . . . . . . . . 333 Sensors 3084 | . . . . 1084 533 . . . 87 . . . . . . . 781 599 . . . IFF 8977 | . . . . . 1945 1627 1550 786 8 . 1054 781 396 195 542 93 . . . . . Terrain 1830 | . . . . . . . . . . . . . . . . . . . 676 593 561 Structural 9032 | . . . . 491 2054 817 1504 786 143 155 1323 . 54 . . 26 653 1026 . . . Seismic 7886 | 195 53 259 1563 101 . 1472 1557 786 143 221 572 . . 2 559 403 . . . . . Jamming 4906 | . . . . 596 367 249 . . . . . . . . . 80 908 1098 162 3 1443 Robot Analysis Total 4 | . . . . . . . . . . . . . . 4 . . . . . . . Derelict Logs Recovered 13 | . . . 2 . 1 2 2 2 . . . 1 2 . 1 . . . . . . Drone Launches 2 | . . . . . . . . . . . 2 . . . . . . . . . . Drone Recoveries 2 | . . . . . . . . . . . 2 . . . . . . . . . . Exploration | -11 -10 -10 -9 -6 -6 -6 -6 -5 -5 -5 -5 -5 -5 -5 -4 -4 -3 -3 -2 -2 -2 ------------- Run | Yrd Mat Sub Scr Fac Low Low Zio Pro Fac Was Fac Upp Upp Zhi Pro Fac Res Tes Res Qua Frg Turns Passed 23619 | 278 53 259 3335 1123 2506 1997 1561 786 143 221 1757 796 822 323 559 589 908 1098 1097 1026 2382 Spaces Moved 13704 | 140 28 138 2085 587 1438 1185 1130 514 87 167 808 442 332 159 400 306 595 644 679 532 1308 Core 175 | 5 . . 170 . . . . . . . . . . . . . . . . . . Treads 5022 | 135 28 138 14 580 1438 118 13 . . . 632 442 211 91 . . . . 74 532 576 Legs 2629 | . . . . . . . . . . . . . . 68 400 306 595 644 605 . 11 Wheels 5862 | . . . 1901 7 . 1067 1117 514 87 167 176 . 121 . . . . . . . 705 Hover . | . . . . . . . . . . . . . . . . . . . . . . Flight 16 | . . . . . . . . . . . . . . . . . . . . . 16 Fastest Speed 50 | 50 160 160 50 130 156 130 130 130 130 110 130 170 170 120 120 120 115 112 112 145 70 Average Speed 144 | 156 160 160 154 156 156 148 133 134 134 112 181 170 197 180 120 120 122 114 123 146 120 Slowest Speed 320 | 160 160 160 205 235 241 320 240 145 145 125 245 170 237 225 120 190 190 183 182 150 272 Overloaded Moves . | . . . . . . . . . . . . . . . . . . . . . . Propulsion Burnouts . | . . . . . . . . . . . . . . . . . . . . . . Robots Hopped . | . . . . . . . . . . . . . . . . . . . . . . Potential Cave-ins 2 | . . . . . . . . . . . . . . . . . . . . 2 . Cave-ins Triggered . | . . . . . . . . . . . . . . . . . . . . . . Teleports 1 | . . . . . . . . . . . . . . . . . . 1 . . . Exploration Rate (%) 45 | 4 6 14 91 14 94 85 90 72 2 82 14 57 44 60 58 7 15 65 16 62 51 Regions Visited 21 Branch Regions 13 Pre-discovered Areas 11 | . . . 4 1 . . 2 . . . . 1 . 3 . . . . . . . Known Exits Taken 11 | . . . . 1 1 1 1 1 . . 1 1 . . 1 1 1 1 . . . Unknown Exits Taken 8 | 1 1 1 1 . . . . . . . . . 1 1 . . . . 1 1 . Scrap Searched 22 | . . . 6 . 1 5 4 1 . . . 1 3 . 1 . . . . . . Spaces Dug 98 | . . . . . 11 . . 22 1 . 5 15 1 . 10 6 5 4 7 2 9 Terrain Destroyed 517 | . . 6 . 74 48 . . 22 1 . 7 35 2 . 30 12 8 12 9 10 241 Melee 4 | . . . . . . . . 1 1 . 2 . . . . . . . . . . Projectile 221 | . . . . . 3 . . . . . 5 . 2 . . 12 8 12 9 9 161 AOE 286 | . . 6 . 74 45 . . 21 . . . 35 . . 30 . . . . . 75 Terrain Rammed . | . . . . . . . . . . . . . . . . . . . . . . Walls Destroyed . | . . . . . . . . . . . . . . . . . . . . . . Machines Disabled . | . . . . . . . . . . . . . . . . . . . . . . Actions | -11 -10 -10 -9 -6 -6 -6 -6 -5 -5 -5 -5 -5 -5 -5 -4 -4 -3 -3 -2 -2 -2 --------- Run | Yrd Mat Sub Scr Fac Low Low Zio Pro Fac Was Fac Upp Upp Zhi Pro Fac Res Tes Res Qua Frg Total 16351 | 174 30 173 2206 741 1600 1384 1184 602 107 195 983 468 425 196 467 460 722 916 820 675 1823 Wait 885 | 5 . 23 4 63 68 99 7 80 5 8 71 13 21 . 54 76 23 119 37 49 60 Move 13685 | 139 27 137 2084 586 1437 1184 1129 513 87 166 807 441 331 158 399 306 594 643 678 531 1308 Hop . | . . . . . . . . . . . . . . . . . . . . . . Pick Up 252 | 10 . 5 75 12 9 16 10 . . 6 9 . 6 4 3 5 12 14 7 7 42 Fast Attach 187 | 5 . . 9 5 3 7 10 . 2 1 11 1 5 11 . 6 17 33 7 7 47 Attach 110 | 2 . . 2 13 7 6 4 . 2 5 6 1 11 4 . 3 5 2 4 2 31 Detach 38 | . . . 1 . 4 5 . . 2 2 5 1 3 4 . 2 1 1 . . 7 Swap 171 | . . . 2 13 10 8 2 6 2 1 10 2 4 3 5 14 9 17 17 16 30 Drop 312 | 1 . 5 27 22 8 17 22 1 2 4 16 1 4 12 1 13 24 41 15 17 59 Fire 657 | 12 3 3 . 27 51 28 . 1 2 2 42 8 31 . 5 34 31 44 50 46 237 Melee 6 | . . . . . . . . 1 3 . 2 . . . . . . . . . . Ram . | . . . . . . . . . . . . . . . . . . . . . . Kick 8 | . . . . . . . . . . . . . . . . 1 6 1 . . . Crush 6 | . . . . . . 4 . . . . 2 . . . . . . . . . . Escape Stasis 7 | . . . . . . . . . . . 2 . . . . . . . 5 . . Rewire 19 | . . . 2 . . 7 . . . . . . 9 . . . . . . . 1 Trap 8 | . . . . . 3 3 . . . . . . . . . . . 1 . . 1 Miscellaneous . | . . . . . . . . . . . . . . . . . . . . . . Route ------- -11/Scrapyard -10/Materials -10/Subcaves -9/Scraptown (discovered 2 exits: *Fac x2) -6/Factory (discovered 5 exits: *Fac / *Low x2 / Ext x2) -6/Lower Caves -6/Lower Caves (discovered 2 exits: Fac / *Zio) -6/Zion -5/Proximity Caves -5/Factory (discovered 5 exits: Fac x3 / Upp x2) -5/Waste -5/Factory -5/Upper Caves -5/Upper Caves (discovered 2 exits: Fac / *Zhi) -5/Zhirov -4/Proximity Caves -4/Factory (discovered 2 exits: *Res x2) -3/Research (discovered 4 exits: Res x3 / *Tes) -3/Testing -2/Research (discovered 3 exits: Acc x2 / *Qua) -2/Quarantine (discovered 3 exits: *Acc / [*Sec] / *Frg) -2/Protoforge History --------- Turn | Location | Event 28 | -11/Scrapyard | Discovered new exit (range 14) 279 | -11/Scrapyard | Entered Materials 280 | -10/Materials | Met a group of wandering Federalists 313 | -10/Materials | Build established: Mutant 325 | -10/Materials | Discovered new exit (range 3) 332 | -10/Materials | Entered Subcaves 332 | -10/Subcaves | Accompanied by 3 allies 333 | -10/Subcaves | Continued accompanying wandering Federalists (6) 333 | -10/Subcaves | Approached by a straggling Scientist 544 | -10/Subcaves | Wandering Federalist uncovered a shortcut to Scraptown 591 | -10/Subcaves | Entered Scraptown 838 | -9/Scraptown | Heard Great Nut preacher, LISTEN AND RECITE! 964 | -9/Scraptown | Scanned Subdweller tech in exchange for log data 968 | -9/Scraptown | Learned location of 1 exit from Proximity Caves 988 | -9/Scraptown | Discovered new exit (range 7) 1091 | -9/Scraptown | Visited TADAMA 1099 | -9/Scraptown | Visited The Evicted 1113 | -9/Scraptown | Visited Cyclists 1126 | -9/Scraptown | Visited UFD Registry 1126 | -9/Scraptown | Registered with UFD as "Cryoroller" 1147 | -9/Scraptown | Entered Cyclist Reading Room 1193 | -9/Scraptown | Visited Comm Corps 1448 | -9/Scraptown | Visited Spacefarers 1494 | -9/Scraptown | Visited Fellowship of the Rings 1511 | -9/Scraptown | Visited Cave Peace 1619 | -9/Scraptown | Visited Junk Repository 1658 | -9/Scraptown | Visited Science Guys 1708 | -9/Scraptown | Visited Scrap Suit Storage 1732 | -9/Scraptown | Visited Cartography Club 1747 | -9/Scraptown | Visited Scrapoid Research Area 1782 | -9/Scraptown | Visited DA-N13 Charitable Foundation 1794 | -9/Scraptown | Found DCF Scrap (27 items) 1818 | -9/Scraptown | Visited Sword Containment 1966 | -9/Scraptown | Visited Curators Association 2032 | -9/Scraptown | Visited Chapter 10 2051 | -9/Scraptown | Visited LU-1G1's Boring Crew 2431 | -9/Scraptown | Found Prototype Slashing Weapon 2608 | -9/Scraptown | Build established: Hauler-Mutant 2713 | -9/Scraptown | Found Surveybot 17 Chip 2746 | -9/Scraptown | Learned location of Lower Caves (-6) 2746 | -9/Scraptown | Learned location of Proximity Caves (-3) 2746 | -9/Scraptown | Learned location of Armory (-3) 2746 | -9/Scraptown | Learned 16 Materials zone layouts 2746 | -9/Scraptown | Learned 24 Factory zone layouts 2746 | -9/Scraptown | Learned 8 Access zone layouts 2746 | -9/Scraptown | Learned 4 Storage zone layouts 2746 | -9/Scraptown | Learned 12 Upper Caves zone layouts 2746 | -9/Scraptown | Learned 20 Upper Caves zone layouts 2746 | -9/Scraptown | Learned Factory emergency access door positions 2746 | -9/Scraptown | Learned location of 1 exit from Research 2746 | -9/Scraptown | Learned location of 1 exit from Proximity Caves 2746 | -9/Scraptown | Learned location of 2 exits from Proximity Caves 2758 | -9/Scraptown | Found Deep Structural Scanner 3820 | -9/Scraptown | Met Optimus 3820 | -9/Scraptown | Accepted into 0bPrime 3918 | -9/Scraptown | Discovered new exit (range 5) 3926 | -9/Scraptown | Entered Factory 3926 | -6/Factory | Evolved 8 slots: Power x1, Propulsion x2, Utility x4, Weapon x1 3927 | -6/Factory | Identified exit to Lower Caves 3927 | -6/Factory | Identified exit to Extension 3928 | -6/Factory | Identified exit to Factory 4206 | -6/Factory | Loaded intel: 8 recycling unit locations 4220 | -6/Factory | Build established: Derelict-Skirmisher 4340 | -6/Factory | Learned location of Protoforge (-2) 5049 | -6/Factory | Entered Lower Caves 5920 | -6/Lower Caves | Build established: Skirmisher 6122 | -6/Lower Caves | Attracted the attention of an 0b10 base 6291 | -6/Lower Caves | Learned Extension trap positions 6491 | -6/Lower Caves | Build established: Tank 6584 | -6/Lower Caves | Attracted the attention of an 0b10 checkpoint 7144 | -6/Lower Caves | Learned 4 Factory zone layouts 7250 | -6/Lower Caves | Discovered new exit (range 19) 7397 | -6/Lower Caves | Build established: Mutant 7552 | -6/Lower Caves | Identified exit to Lower Caves 7555 | -6/Lower Caves | Entered another Lower Caves area 7559 | -6/Lower Caves | Encountered a Warlord checkpoint 7569 | -6/Lower Caves | Attracted the attention of an 0b10 outpost 7653 | -6/Lower Caves | Lost 3 parts (2p1n) 7879 | -6/Lower Caves | Attached CPS modules to M-22 Extractor. 7963 | -6/Lower Caves | Learned Factory interactive machine intel 8021 | -6/Lower Caves | Learned location of 1 exit from Proximity Caves 8058 | -6/Lower Caves | Build established: Scavenger-Mutant 8941 | -6/Lower Caves | Build established: Scavenger-Skirmisher 9248 | -6/Lower Caves | Spotted B-75 Beast 9304 | -6/Lower Caves | Destroyed B-75 Beast 9372 | -6/Lower Caves | Discovered new exit (range 17) 9550 | -6/Lower Caves | Identified exit to Zion 9552 | -6/Lower Caves | Entered Zion 9634 | -6/Zion | Discovered new exit (range 14) 9763 | -6/Zion | System corruption reached 10% 9776 | -6/Zion | System corruption cleaned by Quarantine Array 10000 | -6/Zion | Learned location of 1 exit from Factory 10186 | -6/Zion | Learned location of Quarantine (-2) 10244 | -6/Zion | Learned Factory stockpile data 10278 | -6/Zion | Given the Hacking Drone Bay 10281 | -6/Zion | Found Prototype Device 10281 | -6/Zion | Identified Hacking Drone Bay 10381 | -6/Zion | Given A8's code to call for help 10472 | -6/Zion | Received a visual enhancement algorithm 10704 | -6/Zion | Turned away by Imprinter 10928 | -6/Zion | Found Prototype Energy Gun 11110 | -6/Zion | Identified exit to Proximity Caves 11113 | -6/Zion | Entered Proximity Caves 11402 | -5/Proximity Caves | Learned Factory emergency access door positions 11461 | -5/Proximity Caves | Learned Factory stockpile data 11663 | -5/Proximity Caves | Build established: Scavenger-Mutant 11899 | -5/Proximity Caves | Entered Factory 11899 | -5/Factory | Evolved 2 slots: Utility x1, Weapon x1 11900 | -5/Factory | Identified exit to Factory 11900 | -5/Factory | Identified exit to Upper Caves 11905 | -5/Factory | Loaded intel: 54 interactive machine locations 12042 | -5/Factory | Sucked down chute 12042 | -5/Factory | Entered Waste 12053 | -5/Waste | Identified Storm Laser 12060 | -5/Waste | Found Adv. Powered Armor 12070 | -5/Waste | Spotted C-40 Crusher 12084 | -5/Waste | Spotted C-40 Crusher 12102 | -5/Waste | Spotted C-40 Crusher 12109 | -5/Waste | Crushed by Compactor (1 part destroyed, 1 dropped) 12120 | -5/Waste | Spotted C-40 Crusher 12134 | -5/Waste | Spotted C-40 Crusher 12147 | -5/Waste | Spotted C-40 Crusher 12234 | -5/Waste | Discovered new exit (range 16) 12254 | -5/Waste | Identified exit to Factory 12257 | -5/Waste | Found Prototype Hackware 12257 | -5/Waste | Identified Exp. System Shield 12263 | -5/Waste | Entered Factory 12417 | -5/Factory | Build established: Scavenger-Skirmisher 12921 | -5/Factory | Build established: Scavenger-Gunner 12922 | -5/Factory | Spotted B-75 Beast 13277 | -5/Factory | Repaired Lrn. Missile Launcher 13409 | -5/Factory | Build established: Hacker-Tank 13692 | -5/Factory | Loaded intel: 8 recycling unit locations 14020 | -5/Factory | Entered Upper Caves 14021 | -5/Upper Caves | Identified exit to Upper Caves 14816 | -5/Upper Caves | Entered another Upper Caves area 14914 | -5/Upper Caves | Attracted the attention of an 0b10 outpost 14960 | -5/Upper Caves | Lost 3 parts (1p1n1u) 14972 | -5/Upper Caves | Destroyed 7 combat bots 15322 | -5/Upper Caves | Spotted B-75 Beast 15365 | -5/Upper Caves | Allies destroyed B-75 Beast 15443 | -5/Upper Caves | Learned Factory garrison access intel 15577 | -5/Upper Caves | Discovered new exit (range 15) 15620 | -5/Upper Caves | Learned Factory trap positions 15638 | -5/Upper Caves | Entered Zhirov 15638 | -5/Zhirov | Accompanied by 2 allies 15643 | -5/Zhirov | Discovered new exit (range 3) 15683 | -5/Zhirov | Met Zhirov 15728 | -5/Zhirov | Learned location of Testing (-3) 15728 | -5/Zhirov | Learned location of Command (-1) 15748 | -5/Zhirov | Zhirov requested help retrieving the SGEMP Prototype 15783 | -5/Zhirov | Found Alien Artifact 15783 | -5/Zhirov | Identified Integrated Reactor 15783 | -5/Zhirov | Installed Integrated Reactor, increased core energy generation (+10) 15900 | -5/Zhirov | Found Alien Artifact 15939 | -5/Zhirov | Build established: Hacker-Mutant 15961 | -5/Zhirov | Entered Proximity Caves 15961 | -4/Proximity Caves | Accompanied by 2 allies 15968 | -4/Proximity Caves | Learned Research garrison access intel 15988 | -4/Proximity Caves | Attracted the attention of an 0b10 checkpoint 16257 | -4/Proximity Caves | Build established: Hacker-Gunner 16520 | -4/Proximity Caves | Entered Factory 16520 | -4/Factory | Evolved 2 slots: Utility x2 16521 | -4/Factory | Identified exit to Research 16522 | -4/Factory | Loaded intel: 111 trap records 16523 | -4/Factory | Loaded intel: 4 garrison access locations 16640 | -4/Factory | Loaded intel: 8 recycling unit locations 16806 | -4/Factory | Discovered exit to Research (range 14) 16877 | -4/Factory | Build established: Hacker-Tank 17075 | -4/Factory | Lost 3 parts (1p1u1w) 17109 | -4/Factory | Entered Research 17109 | -3/Research | Evolved 2 slots: Utility x2 17110 | -3/Research | Identified exit to Testing 17111 | -3/Research | Loaded intel: 4 garrison access locations 17436 | -3/Research | Identified Transdimensional Reconstructor 17681 | -3/Research | Build established: Hacker-Skirmisher 17715 | -3/Research | Identified exit to Research 18017 | -3/Research | Entered Testing 18076 | -3/Testing | Found Prototype Energy Gun 18076 | -3/Testing | Identified Hyp. EM Gauss Rifle 18145 | -3/Testing | Found Prototype Energy Cannon 18145 | -3/Testing | Identified Hpw. Disruptor Cannon 18300 | -3/Testing | Found Adv. Powered Armor 18389 | -3/Testing | Found Prototype Processor 18389 | -3/Testing | Identified Exp. Signal Interpreter 18476 | -3/Testing | Found Prototype Ballistic Gun 18476 | -3/Testing | Identified Hyp. Multirail 18735 | -3/Testing | Repaired Broken Enh. Biometal Leg 18797 | -3/Testing | Found Prototype Device 18797 | -3/Testing | Identified Exp. Shield Generator 18876 | -3/Testing | Discovered exit to Research (range 20) 18977 | -3/Testing | Warped through subspace 19103 | -3/Testing | Build established: Hacker-Tank 19115 | -3/Testing | Entered Research 19115 | -2/Research | Evolved 2 slots: Power x1, Utility x1 19116 | -2/Research | Identified exit to Access 19309 | -2/Research | Fabricated Point Singularity Launcher? 19369 | -2/Research | Loaded intel: 5 recycling unit locations 19524 | -2/Research | Build established: Hacker-Gunner 19681 | -2/Research | Spotted B-90 Cyclops 19727 | -2/Research | Spotted B-90 Cyclops 19991 | -2/Research | Discovered new exit (range 20) 20212 | -2/Research | Entered Quarantine 20306 | -2/Quarantine | Cryocooling Duct disabled 20321 | -2/Quarantine | Ambient heat levels rising (+20) 20321 | -2/Quarantine | Non-combat units ordered to evacuate 20413 | -2/Quarantine | Repaired Exp. Shield Generator 20494 | -2/Quarantine | Found Alien Artifact 20494 | -2/Quarantine | Identified Phase Redirector 20611 | -2/Quarantine | Found Alien Slashing Weapon 20715 | -2/Quarantine | Discovered exit to Access (range 20) 20723 | -2/Quarantine | Build established: Scavenger-Tank 20771 | -2/Quarantine | Destroyed 7 combat bots 20962 | -2/Quarantine | First assault squad dispatched 21010 | -2/Quarantine | Found Alien Artifact 21012 | -2/Quarantine | Identified Subatomic Replicator 21012 | -2/Quarantine | Used Subatomic Replicator to replicate Hyp. Multirail 21125 | -2/Quarantine | Spotted Fortress 21225 | -2/Quarantine | Discovered new exit (range 6) 21225 | -2/Quarantine | Discovered new exit (range 6) 21238 | -2/Quarantine | Entered Protoforge 21332 | -2/Protoforge | Superfortress began startup sequence 21530 | -2/Protoforge | Build established: Hacker-Tank 21536 | -2/Protoforge | Identified Sigix Broadsword 21564 | -2/Protoforge | Spotted EXE-6 21564 | -2/Protoforge | Spotted EXE-6 21575 | -2/Protoforge | Destroyed EXE-6 21582 | -2/Protoforge | Destroyed EXE-6 21589 | -2/Protoforge | Found Prototype Ballistic Gun 21589 | -2/Protoforge | Identified Cep. XC Strikerail 21596 | -2/Protoforge | Found Prototype Processor 21596 | -2/Protoforge | Identified Exp. Armor Integrity Analyzer 21617 | -2/Protoforge | Found Cep. XC Strikerail 21650 | -2/Protoforge | Spotted Decapitator 21650 | -2/Protoforge | Spotted Decapitator 21656 | -2/Protoforge | Destroyed Decapitator 21659 | -2/Protoforge | Destroyed Decapitator 21716 | -2/Protoforge | UFD initiated attack on Protoforge (Readiness: Adequate) 21716 | -2/Protoforge | Loaded intel: 3 recycling unit locations 21754 | -2/Protoforge | Optimus greeted in Protoforge 21796 | -2/Protoforge | Found Prototype Processor 21796 | -2/Protoforge | Identified Exp. Core Analyzer 21813 | -2/Protoforge | Lost 6 allies 21882 | -2/Protoforge | Met 7R-MNS 21917 | -2/Protoforge | UFD reported confirmed Drillbomb installation 21959 | -2/Protoforge | Spotted Striker 21967 | -2/Protoforge | Spotted Striker 22037 | -2/Protoforge | Spotted Hotshot 22041 | -2/Protoforge | Destroyed Hotshot 22043 | -2/Protoforge | Spotted Hotshot 22047 | -2/Protoforge | Spotted Hotshot 22048 | -2/Protoforge | Destroyed Hotshot 22048 | -2/Protoforge | Destroyed Hotshot 22131 | -2/Protoforge | Spotted Striker 22132 | -2/Protoforge | Destroyed Executioner 22133 | -2/Protoforge | Spotted Striker 22139 | -2/Protoforge | Spotted Striker 22139 | -2/Protoforge | Destroyed Striker 22143 | -2/Protoforge | Destroyed Striker 22164 | -2/Protoforge | Lost 4 allies 22167 | -2/Protoforge | Build established: Scavenger-Gunner 22170 | -2/Protoforge | UFD reported confirmed Drillbomb installation 22199 | -2/Protoforge | Destroyed 10 combat bots 22249 | -2/Protoforge | Spotted Striker 22255 | -2/Protoforge | Spotted Executioner 22255 | -2/Protoforge | Destroyed Striker 22264 | -2/Protoforge | Destroyed Executioner 22267 | -2/Protoforge | UFD reported confirmed Drillbomb installation 22288 | -2/Protoforge | Forge Plexus network access discovered 22290 | -2/Protoforge | Lost 5 allies 22294 | -2/Protoforge | Spotted Striker 22300 | -2/Protoforge | Spotted Striker 22301 | -2/Protoforge | Spotted Hotshot 22301 | -2/Protoforge | Spotted Striker 22303 | -2/Protoforge | Spotted Striker 22304 | -2/Protoforge | Spotted Hotshot 22306 | -2/Protoforge | Destroyed Striker 22306 | -2/Protoforge | Destroyed Hotshot 22314 | -2/Protoforge | Destroyed Striker 22321 | -2/Protoforge | Destroyed Striker 22325 | -2/Protoforge | Spotted Hotshot 22325 | -2/Protoforge | Spotted Decapitator 22333 | -2/Protoforge | Spotted Hotshot 22337 | -2/Protoforge | Spotted Decapitator 22337 | -2/Protoforge | Spotted Decapitator 22339 | -2/Protoforge | Spotted Decapitator 22339 | -2/Protoforge | Spotted Decapitator 22348 | -2/Protoforge | Destroyed Decapitator 22351 | -2/Protoforge | Destroyed Hotshot 22353 | -2/Protoforge | Spotted Striker 22357 | -2/Protoforge | Destroyed Striker 22362 | -2/Protoforge | Spotted Executioner 22366 | -2/Protoforge | Destroyed Hotshot 22370 | -2/Protoforge | Destroyed Executioner 22390 | -2/Protoforge | Lost 4 allies 22404 | -2/Protoforge | Lost 7 parts (1p2n2u2w) 22406 | -2/Protoforge | Spotted Executioner 22415 | -2/Protoforge | Destroyed 23 combat bots 22417 | -2/Protoforge | Found Cep. Concussive Dispersal Blaster 22421 | -2/Protoforge | Spotted Striker 22422 | -2/Protoforge | Spotted Executioner 22423 | -2/Protoforge | Spotted Executioner 22429 | -2/Protoforge | Destroyed Executioner 22430 | -2/Protoforge | UFD reported confirmed Drillbomb installation 22433 | -2/Protoforge | Spotted Executioner 22434 | -2/Protoforge | System corruption reached 10% 22435 | -2/Protoforge | Destroyed Striker 22439 | -2/Protoforge | Spotted Striker 22441 | -2/Protoforge | Destroyed Executioner 22451 | -2/Protoforge | Spotted Executioner 22452 | -2/Protoforge | Destroyed Striker 22452 | -2/Protoforge | Destroyed Executioner 22458 | -2/Protoforge | Lost 5 allies 22463 | -2/Protoforge | Destroyed Executioner 22484 | -2/Protoforge | Destroyed 16 combat bots 22493 | -2/Protoforge | Lost 7 parts (2p1n1u3w) 22543 | -2/Protoforge | Destroyed Executioner 22545 | -2/Protoforge | Core integrity fell below 50% 22594 | -2/Protoforge | Lost 7 parts (2p2n3u) 22753 | -2/Protoforge | Found 0bPrime Scrap Suit 22765 | -2/Protoforge | Spotted Executioner 22766 | -2/Protoforge | Spotted Executioner 22767 | -2/Protoforge | Spotted Executioner 22791 | -2/Protoforge | Lost 6 allies 22797 | -2/Protoforge | UFD reported confirmed Drillbomb installation 22895 | -2/Protoforge | Spotted Striker 22897 | -2/Protoforge | Spotted Striker 22905 | -2/Protoforge | Spotted Hotshot 22905 | -2/Protoforge | Spotted Hotshot 22918 | -2/Protoforge | Destroyed Hotshot 23000 | -2/Protoforge | UFD reported confirmed Drillbomb installation 23017 | -2/Protoforge | Spotted Striker 23021 | -2/Protoforge | Spotted Striker 23030 | -2/Protoforge | Destroyed Striker 23038 | -2/Protoforge | Destroyed Striker 23055 | -2/Protoforge | Build established: Scavenger-Scrapper 23075 | -2/Protoforge | Destroyed 7 combat bots 23139 | -2/Protoforge | Found Scrap Suit 23190 | -2/Protoforge | Spotted Striker 23197 | -2/Protoforge | Spotted Striker 23202 | -2/Protoforge | Destroyed Striker 23202 | -2/Protoforge | Destroyed Striker 23228 | -2/Protoforge | Spotted Executioner 23242 | -2/Protoforge | Spotted Executioner 23256 | -2/Protoforge | Destroyed Executioner 23290 | -2/Protoforge | Destroyed 9 combat bots 23290 | -2/Protoforge | Found Exp. Core Analyzer 23373 | -2/Protoforge | Found 0bPrime Scrap Suit 23424 | -2/Protoforge | Lost 3 allies 23455 | -2/Protoforge | Spotted Striker 23467 | -2/Protoforge | Destroyed Striker 23487 | -2/Protoforge | Spotted Striker 23488 | -2/Protoforge | Spotted Striker 23500 | -2/Protoforge | Destroyed Striker 23509 | -2/Protoforge | Spotted Striker 23512 | -2/Protoforge | Spotted Striker 23521 | -2/Protoforge | Core integrity fell below 20% 23551 | -2/Protoforge | Lost 3 parts (1p1u1w) 23579 | -2/Protoforge | Spotted Striker 23579 | -2/Protoforge | Spotted Striker 23580 | -2/Protoforge | Spotted Striker 23581 | -2/Protoforge | Spotted Executioner 23593 | -2/Protoforge | Destroyed Striker 23620 | -2/Protoforge | Destroyed by G-73 Enforcer with Heavy Laser Last Messages --------------- 23610_ 02FAN-D destroyed. 23610_ Hvy. Armor Plating destroyed. 23610_ 02FAO-D suffers critical hit (Smash). 23610_ 02FAO-D system corrupted by crushing effect. 23610_ 02FAO-D knocked back. 23611_ 02F27-K cannibalizes Scrap Suit to repair Mak. Coolant Network. 23611_ HV Slug penetrates Wall. 23611_ Critical hit (Impale). 23612_ S-43 Plague knocked back. 23612_ Ovr. Huge Scrapsphere repairs itself (+0). 23612_ Acquired 1 matter. 23613_ Slug penetrates 02F27-K. 23615_ Destroyed Prototype Piercing Weapon. 23615_ Striker destroyed. 23615_ 02F27-K destroyed. 23617_ Striker suffers critical hit (Burn). 23617_ Destroyed Exp. Reaction Control System. 23617_ DH-IIW(j) destroyed. 23617_ Striker overheating. 23619_ Critical hit (Burn: +25). Map ----- +----------------------------------------------------+ | ????????????????????##???######################### | | ????????????????????##???######################### | | ????????????????????##???##?????????????#???????#? | | ????????????????????##???##?????????????#???????#? | | ????????????????????##???##?????????????#???????#? | | ????????????????????##???##?????????????#???????#? | | ???????????????????###???##?????????????????????#? | | ???????????????????###???##?????????????#####?###? | | ####???????????????##?????#####?###########?????## | | ####???????????????##????????????##########??????? | | ??##???????????????##????????????????????????????? | | ??##???????????????##????????????##########??????? | | ??##???????????????##?????#################?????## | | ??##???????????????################??????######### | | ??##???????????????#########?????????????######### | | ??##?????????????????????????????????????????????? | | ??##??????????????????????######################## | | ??##????????????################################## | | ############################ "" #### ## | | ##############"### # ""S #### ## | | ??? # # "" ### " " ## | | ??"""" """" """ # ^ # #### # | | ? """" """" """"%# # """ #"##= " " "# | | """" """" """"!+ % !% # """" %"! "" #" | | """" !! %; =[=g! # """ #"#% [ " | | =%= =[=%!mg*%/@ # """" " "] |% " | | p!| ;*!%%s== # =/! " /%* "% | | #########;;;;;####!#!#%%######"!=%*"" = %% [" | | /!% ! K!b[ %= %!%*%!]% %"%%! % % %! | | " % %%!% [%[ *%[%!%[=%/*% %!! % | | "%" " % !!%* ! !%[[=%!% = % [%=! | | "" " % [ ==%/%!! % % / %! | | ##+######%" #;;;######+##"""=!!=*"" %]*! | | ?????####" # ???# ""=!* " ! ![ [ | | ?????#### # ????# "" " "" # " % % | | ?????#### +?????# """ ## ""%" % ###"%% | | ?????#### #?????# "" " ## " " " %% | | ?????#### #?????# """" ## " """" ## " #" | | ?????#### #?????# #" # """" ## " " | | ?????#### #?????# ""T"" ##### # "" " """" " | | ?????#### /% #?????# """"" ##### # +% | | ?????#### = %#?????# ##?## + ## """% | | ?????####!%%=#?????###########?## ########### " | | ?????####!=%=#?????###########?## ?######### ###" | | ?????####*/=%??????##??????????## ?##?????# #? | | ######### !%!###############???#######?????### | | ######### %###############???#######??????## | | ######### % #????????????##????????????????## | | ######### #????????????##????????????????## "" | | ????????? ??????????? ?##????????????????##??"" | +----------------------------------------------------+ Best States ------------- Heat Dissipation 127 Energy Generation 75 Energy Capacity 640 Matter Stores 300 Matter Capacity 300 Sight Range 23 Robot Scan Range 16 Terrain Scan Range 20 Terrain Scan Density 1210 Jamming Range 16 Armor Coverage 825 Resistance: TH 30 Core Shielding 30 Propulsion Shielding 15 Weapon Shielding 90 Weapon Cycling 25 Phase Shifting 15 Evasion (%) 70 Targeting Accuracy 8 Launcher Accuracy 60 Target Analysis 12 Core Analysis 12 Armor Integrity Analysis 50 Recoil Reduction 4 Energy Filtering 50 Offensive Hacking 10 Defensive Hacking 26 Trap Extractor Capacity 6 Item Schematics ----------------- Mapping Drone Bay | -5/Factory | Scanalyzed Assault Drone Bay | -5/Zhirov | Free Exp. Heat Sink | -5/Zhirov | Free Imp. Arc Thrower | -5/Zhirov | Free Exp. Optical Array | -5/Zhirov | Free Adv. Powered Armor | -3/Research | Scanalyzed Hvy. Siege Treads | -3/Research | Scanalyzed Huge Storage Unit | -3/Testing | Hacked Point Singularity Launcher | -3/Testing | Hacked Robot Schematics ------------------ None Fabricated ------------ Point Singularity Launcher | x1 | -2/Research Repaired ---------- Lrn. Missile Launcher | 24% | -5/Factory Enh. Biometal Leg | 33% | -3/Testing | Broken Exp. Shield Generator | 21% | -2/Quarantine Studied --------- Com. Wheel | -5/Factory | Hacked Hvy. Siege Treads | -5/Factory | Hacked Particle Reactor | -3/Research | Hacked Alien Tech Used ----------------- Integrated Reactor Transdimensional Reconstructor Phase Redirector Subatomic Replicator Sigix Broadsword Achievements -------------- About That Survey... Anti-science Crusade Hulk Smash Inventory(Loot) Overclocked Strength In Numbers Super-what Now? Tank Life That Tickles We Are One Challenges ------------ None Game ------ Seed GravmagAccelerationTreads Manual? 0 Play Time 03:50:15 Cumulative 631.9 hours Start 2026.01.11 @ 19:05:03 End 2026.01.16 @ 19:43:47 Sessions 4 Manual Loads 0 Difficulty Rogue Special Mode None Game No. 351 Rogue 326 Adventurer 7 Explorer 18 Win Type - Total 54 Types 34/1/8/2/2/1/1/3/0/2 Lore% 95 Gallery% 89 Achievement% 67 Wizard Run 0 Options --------- Layout 0 ASCII 0 Keyboard 0 Movement Numpad Keybinds 0 Fullscreen 1 Font 12/Smallcaps Map View 83x54 Zoom Use 0% Tactical HUD 1 Map Filters NONE Filters NONE Steam 1 RUN: 31759f9a-b8b4-4609-aaa1-9e759877cc80